bitfinex-derivatives/quotes_ETHF0:USTF0_20241017
["timestamp","ask_amount","ask_price","bid_price","bid_amount"]
[1729187531121,2.79796925,2609.7,2609.6,3.98125]
[1729187531314,2.41472925,2609.7,2609.6,3.98125]
[1729187531514,2.79796925,2609.7,2609.6,0.3902]
[1729187531814,2.79796925,2609.7,2609.6,0.77345]
[1729187534721,2.41472925,2609.7,2609.6,0.77345]
[1729187537925,2.79796925,2609.7,2609.6,0.77345]
[1729187538221,2.41472925,2609.7,2609.6,0.77345]
[1729187539327,2.41472925,2609.7,2609.6,1.77069037]
[1729187539525,2.41472925,2609.7,2609.6,3.1231809]
[1729187539722,2.99,2610.1,2610.0,0.38319]
[1729187539924,0.98481,2610.0,2609.9,0.38321]
[1729187540225,0.98481,2610.0,2609.9,3.5508517]
[1729187540420,0.98481,2610.0,2609.9,5.40629057]
[1729187540618,0.98481,2610.0,2609.9,7.25200553]
[1729187540821,0.98481,2610.0,2609.9,4.04420553]
[1729187541021,0.98481,2610.0,2609.9,2.73937187]
[1729187541227,0.98481,2610.0,2609.9,1.38700644]
[1729187541228,1.368,2610.0,2609.9,1.38700644]
[1729187541627,1.368,2610.0,2609.8,1.4972301]
[1729187541628,0.38321,2609.9,2609.8,1.00379644]
[1729187541824,6.58101,2609.9,2609.8,0.38322]
[1729187542023,2.99,2609.9,2609.7,1.00379644]
[1729187542329,0.38323,2609.8,2609.7,1.38703644]
[1729187542823,4.358,2609.9,2609.6,1.39399644]
[1729187543024,0.38324,2609.8,2609.7,0.38323]
[1729187543344,4.358,2609.9,2609.8,0.38322]
[1729187543831,3.37321,2609.9,2609.8,0.38322]
[1729187544031,4.358,2609.9,2609.8,0.38322]
[1729187544227,2.99,2609.9,2609.8,0.38322]
[1729187544430,0.98481,2610.0,2609.7,1.96189644]
[1729187544735,3.37322,2609.9,2609.8,0.38322]
[1729187548233,2.99,2609.9,2609.8,0.38322]
[1729187548635,4.358,2609.9,2609.8,0.38322]
[1729187548835,2.99,2609.9,2609.8,0.38322]
[1729187549337,6.1978,2610.1,2610.0,0.38319]
[1729187549529,4.358,2610.1,2610.0,0.38319]
[1729187549726,0.4003,2610.3,2609.8,4.16585]
[1729187549727,0.98484,2610.2,2609.9,0.95801]
[1729187550026,0.98484,2610.2,2610.1,0.38318]
[1729187550429,0.98484,2610.2,2610.1,0.77068]
[1729187550736,0.98484,2610.2,2610.1,0.3875]
[1729187551043,0.98484,2610.2,2610.1,0.77068]
[1729187551239,2.99,2610.3,2610.2,0.38316]
[1729187551240,4.353,2610.3,2610.2,0.38316]
[1729187551742,2.99,2610.3,2610.2,0.38316]
[1729187556232,1.363,2610.4,2610.3,0.95787]
[1729187556434,1.363,2610.4,2610.3,0.79515]
[1729187558446,0.97991,2610.7,2610.4,0.95783]
[1729187558744,0.97991,2610.7,2610.6,0.38311]
[1729187559331,0.97991,2610.7,2610.6,0.80761]
[1729187560343,1.363,2610.7,2610.6,0.80761]
[1729187560942,1.363,2610.7,2610.6,0.38311]
[1729187561247,0.38311,2610.6,2610.5,0.38311]
[1729187561549,3.37311,2610.6,2610.5,0.38311]
[1729187562246,2.99,2610.6,2610.5,0.38311]
[1729187562544,3.37311,2610.6,2610.5,0.38311]
[1729187564146,0.38314,2610.5,2610.4,0.38312]
[1729187564339,3.37314,2610.5,2610.4,0.38312]
[1729187565434,0.38314,2610.4,2610.3,0.81245]
[1729187566236,0.77154,2610.4,2610.3,0.4293]
[1729187566439,0.77154,2610.4,2610.3,0.81245]
[1729187570252,2.99,2610.7,2610.4,0.38314]
[1729187570450,2.99,2610.7,2610.6,0.38311]
[1729187570745,3.2078,2610.8,2610.7,0.38309]
[1729187571153,3.59088,2610.8,2610.7,0.38309]
[1729187571344,3.2078,2610.8,2610.7,0.38309]
[1729187571650,0.38309,2610.7,2610.6,0.79629]
[1729187571854,3.37309,2610.7,2610.6,0.79629]
[1729187572151,2.99,2610.7,2610.6,0.79629]
[1729187574547,3.37309,2610.7,2610.6,0.79629]
[1729187575056,2.99,2610.7,2610.6,0.79629]
[1729187575648,3.37309,2610.7,2610.6,0.79629]
[1729187575852,2.99,2610.7,2610.6,0.79629]
[1729187576353,0.38309,2610.8,2610.6,0.4132]
[1729187576547,0.38309,2610.8,2610.7,0.38309]
[1729187577059,0.38309,2610.7,2610.6,0.79629]
[1729187577756,4.353,2610.9,2610.6,0.4132]
[1729187577953,4.73607,2610.9,2610.8,0.38308]
[1729187578857,4.353,2610.9,2610.6,0.4132]
[1729187579153,0.38309,2610.8,2610.7,0.38308]
[1729187579461,0.38312,2610.6,2610.5,0.38312]
[1729187579857,0.38313,2610.5,2610.4,0.38312]
[1729187581956,3.4018,2610.7,2610.3,0.4293]
[1729187582158,0.3831,2610.7,2610.6,0.38311]
[1729187582358,1.7431,2610.7,2610.6,0.38311]
[1729187585065,1.36,2610.7,2610.6,0.38311]
[1729187585272,1.74309,2610.7,2610.6,0.38311]
[1729187585467,1.74309,2610.7,2610.5,0.80861]
[1729187585468,0.38311,2610.6,2610.5,0.80861]
[1729187585962,2.99,2610.6,2610.3,0.4293]
[1729187586159,0.38314,2610.4,2610.3,0.81244]
[1729187588969,0.56641478,2610.5,2610.4,0.38314]
[1729187589263,1.7431,2610.7,2610.6,0.38311]
[1729187589471,2.30997816,2610.7,2610.6,0.38311]
[1729187589965,1.92687816,2610.7,2610.6,0.38311]
[1729187590162,1.92687816,2610.7,2610.6,0.77531]
[1729187590756,2.30996816,2610.7,2610.6,0.77531]
[1729187592767,1.92687816,2610.7,2610.6,0.77531]
[1729187593167,2.30996816,2610.7,2610.6,0.77531]
[1729187593669,1.74309,2610.7,2610.6,0.77531]
[1729187593875,0.38309,2610.7,2610.6,0.38311]
[1729187594067,0.79469,2610.7,2610.6,0.38311]
[1729187595374,0.38311,2610.6,2610.5,1.80160644]
[1729187595563,0.38311,2610.6,2610.5,3.15535578]
[1729187595764,0.38311,2610.6,2610.5,1.80160644]
[1729187595765,1.76311,2610.6,2610.5,1.80160644]
[1729187596170,1.38,2610.6,2610.5,1.80160644]
[1729187596369,1.38,2610.6,2610.5,3.15535379]
[1729187596571,1.38,2610.6,2610.5,2.15155735]
[1729187596771,1.38,2610.6,2610.5,3.15638796]
[1729187596971,1.76311,2610.6,2610.5,2.15155735]
[1729187597174,1.76311,2610.6,2610.5,1.80262544]
[1729187597473,1.76311,2610.6,2610.5,2.15171276]
[1729187597674,1.76311,2610.6,2610.5,3.15674512]
[1729187597870,1.76311,2610.6,2610.5,3.15677764]
[1729187598076,1.76311,2610.6,2610.5,1.80274364]
[1729187598472,1.76311,2610.6,2610.5,3.15688386]
[1729187599165,1.76311,2610.6,2610.5,0.79782]
[1729187599370,1.76311,2610.6,2610.5,0.4147]
[1729187599677,0.38312,2610.5,2610.4,0.38312]
[1729187600874,1.76312,2610.6,2610.5,0.38312]
[1729187601573,1.38,2610.6,2610.5,0.38312]
[1729187602075,1.38,2610.7,2610.3,3.17588]
[1729187602275,1.92772836,2610.8,2610.4,0.95783]
[1729187602276,1.38,2610.6,2610.4,0.95783]
[1729187602469,1.38,2610.6,2610.5,0.38312]
[1729187606383,1.38,2610.6,2610.5,1.73739095]
[1729187607182,1.38,2610.6,2610.5,3.24504398]
[1729187607378,1.76311,2610.6,2610.5,3.24504398]
[1729187608598,1.38,2610.6,2610.5,3.24504098]
[1729187610781,1.38,2610.6,2610.5,1.73738795]
[1729187611183,1.38,2610.6,2610.5,4.94518795]
[1729187612380,3.2078,2611.5,2610.6,0.95776]
[1729187612585,1.38,2611.1,2611.0,1.00511408]
[1729187612888,0.38299,2611.4,2611.1,0.3899]
[1729187613087,5.17061713,2611.5,2611.4,0.38299]
[1729187613392,5.17061713,2611.5,2611.3,1.00500176]
[1729187613393,0.38299,2611.4,2611.3,1.38800176]
[1729187613685,0.383,2611.3,2611.2,1.00500176]
[1729187613880,1.763,2611.3,2611.2,2.35862517]
[1729187614387,0.38302,2611.2,2611.1,1.38803176]
[1729187614591,1.76302,2611.2,2611.1,0.38303]
[1729187615188,1.38,2611.2,2611.1,0.38303]
[1729187615376,1.38,2611.2,2611.1,5.94903995]
[1729187615582,1.38,2611.2,2611.1,5.94865716]
[1729187615882,1.38,2611.2,2611.1,16.28092653]
[1729187616890,1.38,2611.2,2611.1,14.7732554]
[1729187617087,1.38,2611.2,2611.1,16.28092653]
[1729187617284,1.38,2611.2,2611.1,15.77680063]
[1729187617585,1.38,2611.2,2611.1,4.59437523]
[1729187617987,1.38,2611.2,2611.1,3.59083]
[1729187621887,1.38,2611.2,2611.1,3.2078]
[1729187622081,1.38,2611.2,2611.0,0.78064]
[1729187622082,0.38303,2611.1,2611.0,0.78064]
[1729187622283,1.798,2611.1,2610.7,0.3911]
[1729187622484,1.798,2611.1,2610.6,0.38309]
[1729187622485,0.38311,2610.7,2610.6,0.38309]
[1729187622786,6.90147,2610.9,2610.5,0.4198]
[1729187623093,1.798,2610.6,2610.4,3.2078]
[1729187623389,1.798,2610.6,2610.5,0.38312]
[1729187623390,0.80111,2610.6,2610.5,0.38312]
[1729187623599,0.38312,2610.5,2610.4,3.59093]
[1729187623781,1.76312,2610.5,2610.4,3.59093]
[1729187625891,0.38312,2610.5,2610.4,3.59093]
[1729187627293,0.98470591,2610.6,2610.4,3.2078]
[1729187627496,0.38312,2610.5,2610.4,3.59092]
[1729187627698,1.36782591,2610.6,2610.5,0.38312]
[1729187628798,2.72382591,2610.6,2610.5,0.38312]
[1729187631091,2.15712,2610.6,2610.5,0.38312]
[1729187631596,6.42173014,2610.9,2610.5,0.38312]
[1729187631895,1.73908,2610.8,2610.7,0.38308]
[1729187632095,1.356,2610.8,2610.7,0.38308]
[1729187632402,1.73908,2610.8,2610.7,0.38308]
[1729187633092,1.356,2610.8,2610.7,0.38308]
[1729187633293,1.73908,2610.8,2610.7,0.38308]
[1729187633987,0.38309,2610.7,2610.6,0.7811]
[1729187634494,1.73908,2610.8,2610.7,0.38309]
[1729187637201,1.356,2610.8,2610.6,0.398]
[1729187637504,3.37311,2610.7,2610.6,0.38311]
[1729187638398,0.38311,2610.7,2610.6,0.38311]
[1729187638610,1.73908,2610.8,2610.7,0.38309]
[1729187639190,2.30619345,2610.8,2610.7,0.38309]
[1729187640494,0.56711345,2610.8,2610.7,0.38309]
[1729187640806,1.356,2610.8,2610.7,0.38309]
[1729187642294,2.30657754,2610.8,2610.7,0.38309]
[1729187642501,1.73908,2610.8,2610.7,0.38309]
[1729187642699,1.356,2610.8,2610.7,0.38309]
[1729187642895,2.99,2610.9,2610.8,0.38308]
[1729187643100,0.56766039,2611.0,2610.9,0.38306]
[1729187643299,0.56764738,2611.3,2611.0,0.38305]
[1729187643502,0.56764738,2611.3,2611.2,0.38302]
[1729187643503,2.30265738,2611.3,2611.2,0.38302]
[1729187645600,1.91964738,2611.3,2611.1,0.4125]
[1729187645799,0.38306,2611.0,2610.9,0.38305]
[1729187646706,0.3896,2611.1,2610.7,0.8332]
[1729187646902,0.38308,2610.9,2610.8,0.38307]
[1729187647301,0.38308,2610.9,2610.7,0.8332]
[1729187647302,0.38306,2611.0,2610.9,0.38305]
[1729187647498,0.3896,2611.1,2610.7,0.8332]
[1729187647705,0.3896,2611.1,2610.8,0.38305]
[1729187647706,0.38307,2610.9,2610.8,0.38305]
[1729187647903,1.76307,2610.9,2610.8,0.38305]
[1729187648408,1.38,2610.9,2610.8,0.38305]
[1729187648611,1.76306,2610.9,2610.8,0.38305]
[1729187648802,1.38,2610.9,2610.8,0.38305]
[1729187649106,1.76306,2610.9,2610.8,0.38305]
[1729187651005,4.16528,2611.4,2611.0,0.38305]
[1729187651308,1.38,2611.3,2611.2,1.76302]
[1729187651502,1.38,2611.3,2611.2,2.57702]
[1729187651902,1.38,2611.3,2611.2,1.19702]
[1729187652304,1.763,2611.3,2611.2,1.19702]
[1729187654813,3.115,2611.3,2611.2,0.38302]
[1729187655508,3.5336,2611.3,2611.2,0.38302]
[1729187657815,3.1506,2611.3,2611.2,0.38302]
[1729187658014,1.38,2611.3,2611.2,0.77842]
[1729187658517,2.732,2611.3,2611.2,0.77842]
[1729187659708,3.115,2611.3,2611.2,0.77842]
[1729187661315,3.6820193,2611.3,2611.2,0.77842]
[1729187665512,3.6820193,2611.3,2611.2,0.38302]
[1729187665916,0.38302,2611.2,2611.1,0.80042]
[1729187666116,2.3300393,2611.2,2611.1,0.80042]
[1729187667420,1.9470193,2611.2,2611.1,0.80042]
[1729187667618,1.38,2611.3,2611.1,0.4174]
[1729187667813,1.38,2611.3,2611.2,0.38302]
[1729187671028,1.763,2611.3,2611.2,0.38302]
[1729187671628,0.38302,2611.2,2611.1,0.80042]
[1729187671820,0.38302,2611.2,2611.1,0.38303]
[1729187672128,0.38303,2611.1,2611.0,4.01904]
[1729187672330,1.76303,2611.1,2611.0,4.01904]
[1729187673122,1.76303,2611.1,2611.0,0.81124]
[1729187677631,1.38,2611.1,2611.0,0.81124]
[1729187677933,1.76303,2611.1,2611.0,0.81124]
[1729187680232,0.38303,2611.1,2611.0,0.81124]
[1729187681236,1.73103,2611.1,2611.0,0.81124]
[1729187681435,2.29857231,2611.1,2611.0,0.81124]
[1729187681833,1.348,2611.1,2611.0,0.81124]
[1729187682551,0.56754231,2611.2,2611.1,0.38303]
[1729187683034,0.95056231,2611.2,2611.1,0.38303]
[1729187683230,0.56754231,2611.2,2611.1,0.38303]
[1729187683427,0.38302,2611.2,2611.1,0.38303]
[1729187683649,0.95056231,2611.2,2611.1,0.38303]
[1729187684533,2.94572288,2611.3,2611.1,0.38303]
[1729187684534,1.348,2611.3,2611.1,1.38]
[1729187684737,1.73101,2611.3,2611.2,0.38302]
[1729187684942,3.11101,2611.3,2611.2,0.38302]
[1729187686237,0.38302,2611.2,2611.1,0.7659607]
[1729187686443,1.76302,2611.2,2611.1,1.1489907]
[1729187688649,3.11101,2611.3,2611.2,0.38302]
[1729187688841,2.728,2611.3,2611.2,0.38302]
[1729187689242,3.111,2611.3,2611.2,0.38302]
[1729187691636,3.67915809,2611.3,2611.2,0.38302]
[1729187692745,0.38302,2611.2,2611.1,1.1489807]
[1729187692940,2.33117809,2611.2,2611.1,1.1489807]
[1729187696848,2.33117809,2611.2,2611.1,2.50375962]
[1729187697046,2.33117809,2611.2,2611.1,2.15440813]
[1729187697947,2.33117809,2611.2,2611.1,2.50385015]
[1729187698545,1.76302,2611.2,2611.1,3.50931581]
[1729187699652,1.76302,2611.2,2611.1,3.50928965]
[1729187700044,1.76302,2611.2,2611.1,3.12626965]
[1729187700442,1.76302,2611.2,2611.1,3.50929965]
[1729187701046,1.76302,2611.2,2611.1,3.12626965]
[1729187701252,12.97262,2611.2,2611.1,0.7659607]
[1729187701448,13.54114178,2611.2,2611.1,0.7659607]
[1729187703051,12.16114178,2611.2,2611.1,0.7659607]
[1729187703654,13.54114178,2611.2,2611.1,0.7659607]
[1729187703847,16.99798149,2611.2,2611.1,0.7659607]
[1729187704047,0.38309,2610.7,2610.6,4.8472]
[1729187704250,1.76309,2610.7,2610.6,4.4641]
[1729187704849,1.76309,2610.7,2610.6,4.0364]
[1729187705054,1.76309,2610.7,2610.2,1.00546566]
[1729187705055,1.38,2610.7,2610.4,0.4166]
[1729187705248,0.56852178,2610.9,2609.9,2.38546566]
[1729187705249,2.76,2610.5,2609.9,2.38546566]
[1729187705450,0.38318,2610.2,2610.1,0.38317]
[1729187705850,0.38318,2610.1,2610.0,1.63649]
[1729187706957,1.76318,2610.1,2610.0,1.63649]
[1729187707255,1.76318,2610.1,2610.0,1.2533]
[1729187707557,1.76318,2610.1,2609.7,4.5878]
[1729187707558,0.38322,2609.8,2609.7,3.59103]
[1729187707751,1.76322,2609.8,2609.7,1.2566]
[1729187707952,6.58102,2609.8,2609.7,1.2566]
[1729187708747,6.58102,2609.8,2609.7,0.4258]
[1729187709756,3.37322,2609.8,2609.7,0.4258]
[1729187710157,6.58102,2609.8,2609.7,0.4258]
[1729187712672,3.37322,2609.8,2609.7,0.4258]
[1729187712966,17.20372942,2609.8,2609.3,0.8308]
[1729187713158,0.38328,2609.4,2609.3,1.60359]
[1729187713362,0.38328,2609.4,2609.3,1.2203]
[1729187713564,3.37328,2609.4,2609.3,1.2203]
[1729187715467,3.37328,2609.4,2609.3,1.6036]
[1729187715666,0.38328,2609.5,2609.3,1.2203]
[1729187715858,1.344,2609.6,2609.5,0.38327]
[1729187716864,1.72725,2609.6,2609.5,0.38327]
[1729187717664,1.72725,2609.6,2609.3,1.2203]
[1729187717665,0.38328,2609.4,2609.3,1.2203]
[1729187717865,0.38328,2609.4,2608.7,3.2078]
[1729187717866,2.99,2609.4,2608.7,3.2078]
[1729187718060,3.2078,2609.5,2608.9,0.38335]
[1729187718061,0.38335,2609.0,2608.9,0.38335]
[1729187718258,0.38335,2609.0,2608.8,1.2277]
[1729187718465,0.38336,2608.9,2608.8,1.61106]
[1729187718667,4.71736,2608.9,2608.8,0.8114]
[1729187719158,4.71736,2608.9,2608.8,0.424]
[1729187719356,5.29242,2608.9,2608.4,0.3874]
[1729187719575,0.38341,2608.5,2608.4,0.8114]
[1729187719862,2.99,2608.6,2608.4,1.19482]
[1729187720068,0.38341,2608.5,2608.4,1.19482]
[1729187720372,0.38341,2608.5,2608.4,0.8114]
[1729187723163,2.99,2608.6,2608.0,0.4232]
[1729187723359,0.38347,2608.2,2608.1,1.20876]
[1729187724169,0.38345,2608.3,2608.2,0.38344]
[1729187724769,4.71841,2608.6,2608.5,0.38341]
[1729187725373,4.335,2608.6,2608.5,0.38341]
[1729187725672,1.345,2608.6,2608.5,0.38341]
[1729187726562,1.7284,2608.6,2608.5,0.38341]
[1729187727674,1.345,2608.6,2608.5,0.38341]
[1729187728368,2.99,2608.7,2608.3,3.2078]
[1729187728369,2.99,2608.7,2608.6,0.3834]
[1729187728571,4.335,2608.7,2608.6,0.3834]
[1729187728965,4.71839,2608.7,2608.6,0.3834]
[1729187729276,4.335,2608.7,2608.6,0.3834]
[1729187729673,2.99,2608.7,2608.6,0.3834]
[1729187729872,3.81447102,2608.9,2608.2,3.2078]
[1729187729873,6.42111102,2608.9,2608.2,3.2078]
[1729187730063,7.5428,2608.9,2608.8,0.38337]
[1729187730579,2.99,2609.1,2608.8,0.38337]
[1729187730773,1.345,2609.0,2608.9,0.77736]
[1729187731767,3.37333,2609.1,2608.9,0.394]
[1729187731977,3.2078,2609.2,2608.9,0.394]
[1729187732178,0.3833,2609.3,2609.2,0.3833]
[1729187732370,2.99,2609.4,2609.3,0.3833]
[1729187732565,4.335,2609.4,2609.3,0.3833]
[1729187733181,6.58103,2609.8,2609.7,0.38324]
[1729187733473,4.71822,2609.8,2609.7,0.38324]
[1729187734679,4.335,2609.8,2609.7,0.38324]
[1729187735264,4.71822,2609.8,2609.7,0.38324]
[1729187736669,3.37322,2609.8,2609.7,0.38324]
[1729187736870,2.99,2609.8,2609.7,0.38324]
[1729187737071,3.37322,2609.8,2609.7,0.38324]
[1729187739283,0.38324,2609.7,2609.6,0.38324]
[1729187739677,2.99,2609.8,2609.4,0.3961]
[1729187739876,2.99,2609.5,2609.4,0.3961]
[1729187740079,3.37327,2609.5,2609.4,0.77938]
[1729187740593,3.37327,2609.5,2609.4,0.3961]
[1729187740880,3.37327,2609.5,2609.4,0.77938]
[1729187743278,3.37327,2609.5,2609.4,0.3961]
[1729187743479,0.38328,2609.4,2609.3,1.14977909]
[1729187743704,0.38328,2609.4,2609.3,0.76648909]
[1729187743875,0.38328,2609.4,2609.3,1.14978909]
[1729187744277,0.38328,2609.4,2609.3,0.76648909]
[1729187749888,0.5973976,2609.4,2609.3,0.76648909]
[1729187751979,1.27346394,2609.4,2609.3,0.76648909]
[1729187756792,0.38337,2608.8,2608.7,4.21326566]
[1729187756989,1.341,2609.0,2608.6,0.3891]
[1729187757189,1.341,2609.0,2608.2,4.71547113]
[1729187757190,5.98,2608.7,2608.2,4.71547113]
[1729187757387,5.98,2608.7,2607.5,1.91779]
[1729187757388,0.38349,2608.0,2607.8,1.50767113]
[1729187757693,0.38353,2607.7,2607.6,0.3834288]
[1729187758001,3.37353,2607.7,2607.6,0.3834288]
[1729187758796,6.58133,2607.7,2607.6,0.3834288]
[1729187760902,6.58133,2607.7,2607.6,0.7669788]
[1729187760903,4.5488,2607.7,2607.6,0.7669788]
[1729187761195,4.331,2607.7,2607.6,0.7669788]
[1729187762583,4.71453,2607.7,2607.6,0.7669788]
[1729187762789,4.71453,2607.7,2607.6,0.3834288]
[1729187762983,4.331,2607.7,2607.6,0.7669788]
[1729187763187,4.331,2607.7,2607.6,0.3834288]
[1729187763398,4.331,2607.7,2607.6,0.7669788]
[1729187763786,4.331,2607.7,2607.6,10.6021788]
[1729187766212,4.331,2607.7,2607.6,4.6021788]
[1729187766213,4.71453,2607.7,2607.6,4.6021788]
[1729187766391,4.331,2607.7,2607.6,0.7669788]
[1729187766699,4.71453,2607.7,2607.6,0.3834288]
[1729187766998,0.38361,2607.2,2607.1,3.98061]
[1729187767199,3.37361,2607.2,2607.1,3.98061]
[1729187767497,3.37361,2607.2,2607.1,3.2078]
[1729187767701,3.37361,2607.2,2607.1,3.59142]
[1729187768003,3.37361,2607.2,2607.1,3.2078]
[1729187768801,6.36361,2607.2,2607.1,3.2078]
[1729187769296,0.38361,2607.2,2607.1,3.2078]
[1729187769502,3.37361,2607.2,2607.1,3.2078]
[1729187769990,6.1978,2607.2,2606.8,0.8199]
[1729187770194,2.99,2606.9,2606.8,1.20356]
[1729187771105,3.37365,2606.9,2606.8,0.4083]
[1729187771300,2.99,2606.9,2606.5,0.3837]
[1729187771501,3.37369,2606.6,2606.5,0.3837]
[1729187772209,2.99,2606.6,2606.5,0.3837]
[1729187772709,4.342,2606.8,2606.7,0.38368]
[1729187775502,4.342,2606.8,2606.4,0.7959]
[1729187775706,2.99,2606.5,2606.4,1.17962]
[1729187776700,2.0300522,2606.5,2606.4,1.17962]
[1729187777401,2.99,2606.7,2606.4,0.7959]
[1729187777703,2.99,2606.7,2606.6,0.38369]
[1729187778411,3.37368,2606.7,2606.6,0.38369]
[1729187778605,2.99,2606.7,2606.6,0.38369]
[1729187779109,1.352,2606.8,2606.7,0.38368]
[1729187779304,2.99,2606.9,2606.8,0.38366]
[1729187779902,3.37365,2606.9,2606.8,0.38366]
[1729187780101,2.99,2606.9,2606.4,4.0037]
[1729187780406,0.38371,2606.5,2606.4,4.38742]
[1729187780604,2.99,2606.6,2606.5,0.38371]
[1729187780605,3.3737,2606.6,2606.5,0.38371]
[1729187781204,2.99,2606.6,2606.4,4.0037]
[1729187781510,3.37371,2606.6,2606.5,0.38371]
[1729187782507,2.99,2606.6,2606.5,0.38371]
[1729187782907,3.37369,2606.6,2606.5,0.38371]
[1729187784615,0.38371,2606.5,2606.4,0.7959]
[1729187784912,0.38371,2606.5,2606.4,0.3963]
[1729187786213,0.38371,2606.5,2606.4,0.78002]
[1729187788304,0.38375,2606.3,2606.2,0.38374]
[1729187788510,3.37375,2606.3,2606.2,0.38374]
[1729187788732,0.38375,2606.2,2606.1,0.38376]
[1729187790101,2.99,2606.3,2605.9,0.4245]
[1729187790305,2.99,2606.0,2605.9,0.8083]
[1729187790508,3.37378,2606.0,2605.9,0.8083]
[1729187790705,2.99,2606.0,2605.9,0.8083]
[1729187791505,0.38377,2606.1,2605.9,0.4245]
[1729187791506,2.99,2606.1,2605.9,0.4245]
[1729187791703,2.99,2606.1,2606.0,0.80978]
[1729187791903,3.37377,2606.1,2606.0,0.80978]
[1729187792315,3.37377,2606.1,2606.0,0.38378]
[1729187794518,2.99,2606.1,2606.0,0.38378]
[1729187796623,3.37377,2606.1,2606.0,0.38378]
[1729187797323,3.3815,2606.1,2605.9,0.4245]
[1729187797511,1.72378,2606.0,2605.9,0.80828]
[1729187798017,1.34,2606.0,2605.6,3.6338]
[1729187798314,1.34,2606.0,2605.6,4.41984]
[1729187798315,3.37383,2605.7,2605.6,4.41984]
[1729187798521,2.0294285,2605.7,2605.6,3.99384]
[1729187800618,1.6455985,2605.7,2605.6,3.99384]
[1729187801317,2.0294285,2605.7,2605.6,3.99384]
[1729187801529,1.6455985,2605.7,2605.6,3.99384]
[1729187801713,2.0294285,2605.7,2605.6,0.78604]
[1729187802023,1.6455985,2605.7,2605.6,0.78604]
[1729187803520,2.0294285,2605.7,2605.6,0.78604]
[1729187808725,2.9855985,2605.7,2605.6,0.78604]
[1729187808918,2.9855985,2605.7,2605.6,1.17904]
[1729187810426,1.6455985,2605.7,2605.6,1.17904]
[1729187810725,2.9855985,2605.7,2605.6,1.17904]
[1729187811128,3.3694285,2605.7,2605.6,1.17904]
[1729187811426,2.9855985,2605.7,2605.6,1.17904]
[1729187812827,1.6455985,2605.7,2605.6,1.17904]
[1729187813024,2.9855985,2605.7,2605.6,1.17904]
[1729187813220,3.3694285,2605.7,2605.6,0.78604]
[1729187815518,2.9855985,2605.7,2605.6,0.78604]
[1729187815724,3.3694285,2605.7,2605.6,0.78604]
[1729187817030,3.3694285,2605.7,2605.6,0.38384]
[1729187817928,2.9855985,2605.7,2605.6,0.38384]
[1729187820430,3.3694285,2605.7,2605.6,0.38384]
[1729187820918,2.0294285,2605.7,2605.6,0.38384]
[1729187821125,3.3694285,2605.7,2605.6,0.38384]
[1729187822627,2.9855985,2605.7,2605.6,0.38384]
[1729187822829,1.6455985,2605.7,2605.6,0.38384]
[1729187823030,2.9855985,2605.7,2605.6,0.38384]
[1729187823631,3.3694285,2605.7,2605.6,0.38384]
[1729187824026,2.9855985,2605.7,2605.6,0.38384]
[1729187824632,2.9835985,2605.7,2605.6,0.38384]
[1729187825337,3.3674285,2605.7,2605.6,0.38384]
[1729187826125,3.7877285,2605.7,2605.6,0.38384]
[1729187827636,0.38384,2605.6,2605.5,1.58155698]
[1729187828338,0.38384,2605.6,2605.5,1.19770698]
[1729187828640,0.38384,2605.6,2605.5,1.15146698]
[1729187828844,2.0658985,2605.7,2605.5,0.76760698]
[1729187829045,0.95416,2605.6,2605.5,0.76760698]
[1729187829238,0.95416,2605.6,2605.5,1.15146698]
[1729187830135,1.6455985,2605.7,2605.6,0.38384]
[1729187830339,2.9835985,2605.7,2605.6,0.38384]
[1729187835958,2.718,2605.7,2605.6,0.38384]
[1729187836149,3.2078,2606.3,2605.6,10.22144]
[1729187836348,1.72176,2606.2,2606.1,0.38375]
[1729187836552,3.10176,2606.2,2606.1,0.38375]
[1729187838861,3.10175,2606.2,2606.1,0.38375]
[1729187839853,4.72175,2606.2,2606.1,0.38375]
[1729187840451,0.38378,2606.1,2606.0,0.38377]
[1729187840650,1.72178,2606.1,2606.0,0.38377]
[1729187840850,2.13508,2606.1,2606.0,0.38377]
[1729187841155,2.13508,2606.1,2605.8,1.50246502]
[1729187841156,0.3838,2606.0,2605.9,0.38378]
[1729187841456,3.3838,2606.0,2605.9,1.70674575]
[1729187841649,7.2214,2606.0,2605.9,1.32296575]
[1729187841850,12.8376,2606.0,2605.7,5.51918502]
[1729187842051,3.38381,2605.8,2605.7,5.52686378]
[1729187842253,3.38381,2605.8,2605.7,6.84999875]
[1729187842455,3.38381,2605.8,2605.7,6.46617875]
[1729187842664,12.8376,2605.8,2605.6,1.51014378]
[1729187842957,0.38384,2605.6,2605.5,2.27775076]
[1729187843159,3.38384,2605.6,2605.5,0.76760698]
[1729187843456,3.77414,2605.6,2605.5,0.76760698]
[1729187844861,0.3839,2605.2,2605.1,1.51014378]
[1729187845055,0.38394,2604.9,2604.8,1.51014378]
[1729187845254,0.38397,2604.7,2604.6,2.29622378]
[1729187845454,0.38397,2604.7,2604.6,0.78608]
[1729187845654,3.0,2604.8,2604.6,0.4021]
[1729187846057,3.0,2604.8,2604.7,0.38397]
[1729187846262,3.38396,2604.8,2604.7,0.38397]
[1729187846859,3.0,2604.8,2604.7,0.38397]
[1729187847355,2.14362,2605.1,2605.0,0.38393]
[1729187847356,4.338,2605.1,2605.0,0.38393]
[1729187847558,3.0,2605.1,2605.0,0.38393]